[Event "*** Titled Tuesday Blitz"]
[Site "Chess.com"]
[Date "2020.04.07"]
[Round "7"]
[White "PenguinPacks"]
[Black "Bathory44"]
[Result "0-1"]
[WhiteElo "2378"]
[BlackElo "2553"]
[TimeControl "180+1"]
[EndTime "14:18:48 PDT"]
[Termination "Bathory44 won by resignation"]

1. e4 {[%clk 0:03:00.9]} 1... e6 {[%clk 0:02:59.9]} 2. Nc3 {[%clk 0:03:00.5]}
2... d5 {[%clk 0:03:00.1]} 3. d4 {[%clk 0:03:01.1]} 3... Nf6 {[%clk 0:02:59.5]}
4. e5 {[%clk 0:03:01.3]} 4... Nfd7 {[%clk 0:02:59.7]} 5. f4 {[%clk 0:03:02.2]}
5... c5 {[%clk 0:03:00.2]} 6. Nf3 {[%clk 0:03:02.6]} 6... Nc6 {[%clk 0:03:00.7]}
7. Be3 {[%clk 0:03:02.9]} 7... Be7 {[%clk 0:03:01.2]} 8. Qd2 {[%clk 0:03:02.6]}
8... O-O {[%clk 0:03:00.7]} 9. Nd1 {[%clk 0:02:57]} 9... a6 {[%clk 0:02:52.6]}
10. c3 {[%clk 0:02:55.6]} 10... b5 {[%clk 0:02:52.7]} 11. Bd3 {[%clk 0:02:53.7]}
11... b4 {[%clk 0:02:44]} 12. O-O {[%clk 0:02:48.8]} 12... bxc3 {[%clk
0:02:23.3]} 13. bxc3 {[%clk 0:02:45.5]} 13... a5 {[%clk 0:02:13.1]} 14. f5
{[%clk 0:02:30.5]} 14... exf5 {[%clk 0:01:59.1]} 15. Bxf5 {[%clk 0:02:28.5]}
15... Nb6 {[%clk 0:01:56]} 16. Qc2 {[%clk 0:02:04.1]} 16... Bxf5 {[%clk
0:01:54.4]} 17. Qxf5 {[%clk 0:02:03.1]} 17... Nc4 {[%clk 0:01:47.6]} 18. Bf2
{[%clk 0:01:59.4]} 18... Qc8 {[%clk 0:01:36.5]} 19. Qh5 {[%clk 0:01:52]} 19...
Qe6 {[%clk 0:01:35.9]} 20. Ne3 {[%clk 0:01:43.8]} 20... Nxe3 {[%clk 0:01:26.6]}
21. Bxe3 {[%clk 0:01:44.7]} 21... cxd4 {[%clk 0:01:25.9]} 22. cxd4 {[%clk
0:01:34.4]} 22... Rab8 {[%clk 0:01:26]} 23. Ne1 {[%clk 0:01:25.4]} 23... Qg6
{[%clk 0:01:17.9]} 24. Qxg6 {[%clk 0:01:20]} 24... hxg6 {[%clk 0:01:18.8]} 25.
Nd3 {[%clk 0:01:20.2]} 25... Nb4 {[%clk 0:01:13.8]} 26. Nf4 {[%clk 0:01:17]}
26... g5 {[%clk 0:01:12.7]} 27. Nh3 {[%clk 0:00:59.7]} 27... Nc2 {[%clk
0:01:12.3]} 28. Rae1 {[%clk 0:00:57.1]} 28... Nxe3 {[%clk 0:01:11.9]} 29. Rxe3
{[%clk 0:00:52.7]} 29... Rb2 {[%clk 0:01:10.9]} 30. a3 {[%clk 0:00:51.6]} 30...
Rd2 {[%clk 0:01:06.4]} 31. Rf5 {[%clk 0:00:35.4]} 31... g6 {[%clk 0:01:03.2]}
32. Rf1 {[%clk 0:00:29.2]} 32... Rxd4 {[%clk 0:01:02.6]} 33. e6 {[%clk
0:00:26.2]} 33... Ra4 {[%clk 0:00:53.6]} 34. exf7+ {[%clk 0:00:20.2]} 34... Rxf7
{[%clk 0:00:54.5]} 35. Rxf7 {[%clk 0:00:19.7]} 35... Kxf7 {[%clk 0:00:54.7]} 36.
Re5 {[%clk 0:00:19.9]} 36... g4 {[%clk 0:00:31.5]} 37. Nf4 {[%clk 0:00:17.5]}
37... Rxf4 {[%clk 0:00:30.5]} 38. Rxd5 {[%clk 0:00:17.7]} 38... a4 {[%clk
0:00:27.5]} 39. g3 {[%clk 0:00:16.3]} 39... Rf3 {[%clk 0:00:24.9]} 40. Kg2
{[%clk 0:00:13.3]} 40... Rxa3 {[%clk 0:00:25.3]} 41. Rd2 {[%clk 0:00:13.2]}
41... Rb3 {[%clk 0:00:24.6]} 0-1

[Event "*** Titled Tuesday Blitz"]
[Site "Chess.com"]
[Date "2020.04.07"]
[Round "7"]
[White "MusicCityMaster"]
[Black "letantha"]
[Result "0-1"]
[WhiteElo "2302"]
[BlackElo "2148"]
[TimeControl "180+1"]
[EndTime "14:18:48 PDT"]
[Termination "letantha won by resignation"]

1. d4 {[%clk 0:03:00.9]} 1... Nf6 {[%clk 0:02:59.5]} 2. c4 {[%clk 0:02:59.3]}
2... e6 {[%clk 0:02:59.9]} 3. Nc3 {[%clk 0:02:57.3]} 3... Bb4 {[%clk 0:02:59.9]}
4. Qc2 {[%clk 0:02:57.7]} 4... Nc6 {[%clk 0:02:58.6]} 5. Nf3 {[%clk 0:02:56.5]}
5... d6 {[%clk 0:02:56.4]} 6. a3 {[%clk 0:02:55.2]} 6... Bxc3+ {[%clk
0:02:56.2]} 7. Qxc3 {[%clk 0:02:55.7]} 7... a5 {[%clk 0:02:55.7]} 8. Bg5 {[%clk
0:02:54.2]} 8... h6 {[%clk 0:02:56]} 9. Bh4 {[%clk 0:02:52.5]} 9... g5 {[%clk
0:02:55.8]} 10. Bg3 {[%clk 0:02:52.6]} 10... Ne4 {[%clk 0:02:54.2]} 11. Qd3
{[%clk 0:02:49.6]} 11... f5 {[%clk 0:02:54.7]} 12. e3 {[%clk 0:02:48.3]} 12...
O-O {[%clk 0:02:49.3]} 13. Be2 {[%clk 0:02:36.8]} 13... Qf6 {[%clk 0:02:36]} 14.
O-O-O {[%clk 0:02:16.2]} 14... a4 {[%clk 0:02:34.9]} 15. Kb1 {[%clk 0:02:12.8]}
15... Na5 {[%clk 0:02:17.7]} 16. Ne1 {[%clk 0:01:44.4]} 16... Nb3 {[%clk
0:01:51]} 17. f3 {[%clk 0:01:37.5]} 17... Nxg3 {[%clk 0:01:50.9]} 18. hxg3
{[%clk 0:01:38]} 18... Bd7 {[%clk 0:01:49.6]} 19. Nc2 {[%clk 0:01:33.8]} 19...
Kg7 {[%clk 0:01:46.6]} 20. Rh2 {[%clk 0:01:23.7]} 20... Rh8 {[%clk 0:01:45.5]}
21. Rdh1 {[%clk 0:01:23.1]} 21... Be8 {[%clk 0:01:44.5]} 22. f4 {[%clk
0:01:14.3]} 22... g4 {[%clk 0:01:42.6]} 23. Bd1 {[%clk 0:01:10.8]} 23... Bf7
{[%clk 0:01:37.2]} 24. Nb4 {[%clk 0:01:10.2]} 24... c5 {[%clk 0:01:32.8]} 25.
Na2 {[%clk 0:00:56]} 25... cxd4 {[%clk 0:01:28]} 26. Bxb3 {[%clk 0:00:53.3]}
26... axb3 {[%clk 0:01:27.8]} 27. Qxb3 {[%clk 0:00:53.6]} 27... dxe3 {[%clk
0:01:22.3]} 28. Qxe3 {[%clk 0:00:52.4]} 28... Rac8 {[%clk 0:01:08.2]} 29. Rc1
{[%clk 0:00:46]} 29... e5 {[%clk 0:00:58.7]} 30. Rhh1 {[%clk 0:00:40.3]} 30...
e4 {[%clk 0:00:53.2]} 31. Qb3 {[%clk 0:00:29.7]} 31... b5 {[%clk 0:00:51.1]} 32.
Nb4 {[%clk 0:00:21.3]} 32... Rxc4 {[%clk 0:00:44.9]} 33. Rxc4 {[%clk 0:00:19.4]}
33... Bxc4 {[%clk 0:00:44.5]} 34. Qe3 {[%clk 0:00:19.2]} 34... Be6 {[%clk
0:00:21.7]} 35. Nc6 {[%clk 0:00:15.7]} 35... Rc8 {[%clk 0:00:19.6]} 36. Nd4
{[%clk 0:00:15]} 36... Bc4 {[%clk 0:00:19.7]} 37. Rh5 {[%clk 0:00:12]} 37...
Bd3+ {[%clk 0:00:19.6]} 38. Ka1 {[%clk 0:00:10.7]} 38... Rc5 {[%clk 0:00:20.5]}
39. b4 {[%clk 0:00:07.6]} 39... Rc4 {[%clk 0:00:20.2]} 40. Rxf5 {[%clk
0:00:06.1]} 40... Qxd4+ {[%clk 0:00:19.2]} 41. Qxd4+ {[%clk 0:00:06.6]} 41...
Rxd4 {[%clk 0:00:20.1]} 42. Kb2 {[%clk 0:00:05]} 42... e3 {[%clk 0:00:20]} 43.
Kc3 {[%clk 0:00:05.2]} 43... Bxf5 {[%clk 0:00:18.2]} 44. Kxd4 {[%clk 0:00:05.4]}
44... e2 {[%clk 0:00:18.8]} 0-1

[Event "*** Titled Tuesday Blitz"]
[Site "Chess.com"]
[Date "2020.04.07"]
[Round "7"]
[White "KarstenHansch"]
[Black "StarkAst"]
[Result "1-0"]
[WhiteElo "2448"]
[BlackElo "2583"]
[TimeControl "180+1"]
[EndTime "14:18:50 PDT"]
[Termination "KarstenHansch won by checkmate"]

1. e4 {[%clk 0:03:00.9]} 1... e6 {[%clk 0:02:59.5]} 2. d4 {[%clk 0:03:00.4]}
2... d5 {[%clk 0:02:59.8]} 3. exd5 {[%clk 0:03:01.3]} 3... exd5 {[%clk
0:02:59.9]} 4. Nf3 {[%clk 0:03:01.9]} 4... Nc6 {[%clk 0:03:00.2]} 5. Bb5 {[%clk
0:03:01.5]} 5... Bd6 {[%clk 0:03:00.9]} 6. c4 {[%clk 0:03:00.8]} 6... dxc4
{[%clk 0:03:01.8]} 7. d5 {[%clk 0:03:01.2]} 7... a6 {[%clk 0:03:02.2]} 8. Ba4
{[%clk 0:03:01.7]} 8... b5 {[%clk 0:03:02.8]} 9. dxc6 {[%clk 0:03:02.3]} 9...
bxa4 {[%clk 0:03:03.1]} 10. O-O {[%clk 0:03:02.9]} 10... Ne7 {[%clk 0:03:03.7]}
11. Nbd2 {[%clk 0:03:02.5]} 11... c3 {[%clk 0:03:02.4]} 12. Ne4 {[%clk
0:02:58.9]} 12... O-O {[%clk 0:02:56.3]} 13. Nxd6 {[%clk 0:02:53.5]} 13... Qxd6
{[%clk 0:02:56]} 14. Qxd6 {[%clk 0:02:52.7]} 14... cxd6 {[%clk 0:02:56.9]} 15.
Nd4 {[%clk 0:02:51.6]} 15... cxb2 {[%clk 0:02:55.2]} 16. Bxb2 {[%clk 0:02:52.5]}
16... Be6 {[%clk 0:02:52.4]} 17. Ba3 {[%clk 0:02:46.7]} 17... Rfc8 {[%clk
0:02:50.2]} 18. Rac1 {[%clk 0:02:22.2]} 18... Bxa2 {[%clk 0:02:23.8]} 19. Bxd6
{[%clk 0:02:18]} 19... Nd5 {[%clk 0:02:21.8]} 20. Rc5 {[%clk 0:02:04.2]} 20...
Rd8 {[%clk 0:01:48.3]} 21. Be5 {[%clk 0:01:52.1]} 21... f6 {[%clk 0:01:43.3]}
22. Bg3 {[%clk 0:01:44.3]} 22... Nc3 {[%clk 0:01:42.8]} 23. c7 {[%clk
0:01:32.6]} 23... Ne4 {[%clk 0:01:12.5]} 24. cxd8=Q+ {[%clk 0:01:18.2]} 24...
Rxd8 {[%clk 0:01:13.4]} 25. Nc6 {[%clk 0:01:04.8]} 25... Rd2 {[%clk 0:01:08.8]}
26. Ra5 {[%clk 0:01:01]} 26... Bb3 {[%clk 0:01:07.7]} 27. Re1 {[%clk 0:00:49.1]}
27... f5 {[%clk 0:01:01.4]} 28. Rxa6 {[%clk 0:00:41.3]} 28... g6 {[%clk
0:00:40.3]} 29. f3 {[%clk 0:00:37.2]} 29... Nc3 {[%clk 0:00:37.8]} 30. Re7
{[%clk 0:00:19.9]} 30... Rd1+ {[%clk 0:00:21.4]} 31. Be1 {[%clk 0:00:19.8]}
31... Kh8 {[%clk 0:00:18.6]} 32. Ra8+ {[%clk 0:00:18.7]} 32... Bg8 {[%clk
0:00:19.2]} 33. Ree8 {[%clk 0:00:17.9]} 33... h5 {[%clk 0:00:15.3]} 34. Rxg8+
{[%clk 0:00:18.8]} 34... Kh7 {[%clk 0:00:14.9]} 35. Rge8 {[%clk 0:00:19.7]}
35... f4 {[%clk 0:00:11.3]} 36. Kf2 {[%clk 0:00:19.8]} 36... Nd5 {[%clk
0:00:10.1]} 37. Ra7+ {[%clk 0:00:19.7]} 37... Kh6 {[%clk 0:00:05.1]} 38. h4
{[%clk 0:00:19.8]} 38... Rc1 {[%clk 0:00:06]} 39. Rh8# {[%clk 0:00:19]} 1-0

[Event "*** Titled Tuesday Blitz"]
[Site "Chess.com"]
[Date "2020.04.07"]
[Round "7"]
[White "AliMentor20"]
[Black "Caracternin123"]
[Result "0-1"]
[WhiteElo "2397"]
[BlackElo "2565"]
[TimeControl "180+1"]
[EndTime "14:18:51 PDT"]
[Termination "Caracternin123 won by resignation"]

1. e4 {[%clk 0:02:55.9]} 1... Nf6 {[%clk 0:02:59.2]} 2. e5 {[%clk 0:02:54.7]}
2... Nd5 {[%clk 0:02:59.2]} 3. d4 {[%clk 0:02:53.9]} 3... d6 {[%clk 0:02:59.7]}
4. c4 {[%clk 0:02:53.6]} 4... Nb6 {[%clk 0:03:00]} 5. exd6 {[%clk 0:02:53.5]}
5... cxd6 {[%clk 0:03:00.9]} 6. Nc3 {[%clk 0:02:53.4]} 6... g6 {[%clk
0:03:01.2]} 7. Be3 {[%clk 0:02:53.7]} 7... Bg7 {[%clk 0:03:01.9]} 8. Rc1 {[%clk
0:02:53.4]} 8... O-O {[%clk 0:03:02.7]} 9. b3 {[%clk 0:02:53.3]} 9... e5 {[%clk
0:03:03.4]} 10. dxe5 {[%clk 0:02:52.8]} 10... dxe5 {[%clk 0:03:04.2]} 11. Qxd8
{[%clk 0:02:52.2]} 11... Rxd8 {[%clk 0:03:03.3]} 12. c5 {[%clk 0:02:51.9]} 12...
N6d7 {[%clk 0:03:03.5]} 13. Bc4 {[%clk 0:02:43.2]} 13... Nc6 {[%clk 0:03:03.7]}
14. Nf3 {[%clk 0:02:40]} 14... h6 {[%clk 0:03:03.8]} 15. Ne4 {[%clk 0:02:30.3]}
15... Na5 {[%clk 0:03:01]} 16. Bd5 {[%clk 0:02:08.2]} 16... Nf6 {[%clk
0:03:00.3]} 17. Nxf6+ {[%clk 0:02:07.6]} 17... Bxf6 {[%clk 0:03:01.2]} 18. Rd1
{[%clk 0:02:06.6]} 18... Kg7 {[%clk 0:02:59.8]} 19. Ke2 {[%clk 0:02:04.1]} 19...
Nc6 {[%clk 0:02:56.6]} 20. Be4 {[%clk 0:01:39.4]} 20... Be6 {[%clk 0:02:39.2]}
21. Rd6 {[%clk 0:01:31.9]} 21... Rxd6 {[%clk 0:02:34.6]} 22. cxd6 {[%clk
0:01:30.7]} 22... Rd8 {[%clk 0:02:35]} 23. Rd1 {[%clk 0:01:30.7]} 23... Rd7
{[%clk 0:02:28.8]} 24. h3 {[%clk 0:01:27.3]} 24... Bf5 {[%clk 0:02:00.1]} 25.
Bxf5 {[%clk 0:01:01]} 25... gxf5 {[%clk 0:02:01]} 26. Bc5 {[%clk 0:00:55.3]}
26... b6 {[%clk 0:01:39.8]} 27. Ba3 {[%clk 0:00:51.6]} 27... e4 {[%clk
0:01:39.8]} 28. Ne1 {[%clk 0:00:42.9]} 28... Nd4+ {[%clk 0:01:29.9]} 29. Kf1
{[%clk 0:00:42.5]} 29... Nb5 {[%clk 0:01:29.9]} 30. Nc2 {[%clk 0:00:30]} 30...
a6 {[%clk 0:01:06.1]} 31. Rd5 {[%clk 0:00:21.3]} 31... Bc3 {[%clk 0:00:56.1]}
32. Rxf5 {[%clk 0:00:19.4]} 32... Nxa3 {[%clk 0:00:55.6]} 33. Nxa3 {[%clk
0:00:18.8]} 33... Rxd6 {[%clk 0:00:56.3]} 34. g4 {[%clk 0:00:16.5]} 34... Rd2
{[%clk 0:00:52.4]} 35. Nc4 {[%clk 0:00:16]} 35... Rxa2 {[%clk 0:00:50.7]} 36.
Nd6 {[%clk 0:00:16.1]} 36... e3 {[%clk 0:00:33.9]} 37. Rxf7+ {[%clk 0:00:15.2]}
37... Kg6 {[%clk 0:00:34.3]} 38. f4 {[%clk 0:00:15.1]} 38... e2+ {[%clk
0:00:29.9]} 0-1

[Event "*** Titled Tuesday Blitz"]
[Site "Chess.com"]
[Date "2020.04.07"]
[Round "7"]
[White "Chessmatus"]
[Black "Skatchkov_V"]
[Result "0-1"]
[WhiteElo "2377"]
[BlackElo "2547"]
[TimeControl "180+1"]
[EndTime "14:18:53 PDT"]
[Termination "Skatchkov_V won by resignation"]

1. d4 {[%clk 0:03:00.9]} 1... Nf6 {[%clk 0:02:59.2]} 2. c4 {[%clk 0:03:00.9]}
2... e6 {[%clk 0:02:59.3]} 3. g3 {[%clk 0:03:00.9]} 3... d5 {[%clk 0:02:58.7]}
4. Nf3 {[%clk 0:03:00.7]} 4... Bb4+ {[%clk 0:02:57.3]} 5. Bd2 {[%clk 0:03:00.3]}
5... Be7 {[%clk 0:02:56.9]} 6. Bg2 {[%clk 0:03:00.3]} 6... O-O {[%clk
0:02:57.1]} 7. O-O {[%clk 0:03:00.5]} 7... c6 {[%clk 0:02:54.3]} 8. Qc2 {[%clk
0:03:00.1]} 8... Nbd7 {[%clk 0:02:53.3]} 9. Rd1 {[%clk 0:03:00.2]} 9... Ne4
{[%clk 0:02:52.7]} 10. Bf4 {[%clk 0:02:46.3]} 10... g5 {[%clk 0:02:51.2]} 11.
Bc1 {[%clk 0:02:41.2]} 11... f5 {[%clk 0:02:50.5]} 12. Nc3 {[%clk 0:02:33.9]}
12... Nd6 {[%clk 0:02:49]} 13. c5 {[%clk 0:02:28.3]} 13... Ne4 {[%clk
0:02:46.9]} 14. Nxe4 {[%clk 0:02:12.1]} 14... fxe4 {[%clk 0:02:44.8]} 15. Ne1
{[%clk 0:02:11.4]} 15... e5 {[%clk 0:02:39.1]} 16. f3 {[%clk 0:01:58.8]} 16...
exd4 {[%clk 0:02:36.4]} 17. fxe4 {[%clk 0:01:58.2]} 17... Bxc5 {[%clk
0:02:30.8]} 18. Nd3 {[%clk 0:01:58]} 18... Bd6 {[%clk 0:02:26.6]} 19. exd5
{[%clk 0:01:57.3]} 19... c5 {[%clk 0:02:26.7]} 20. Bd2 {[%clk 0:01:45.6]} 20...
b6 {[%clk 0:02:24.5]} 21. Rf1 {[%clk 0:01:40.2]} 21... Bb7 {[%clk 0:02:23.6]}
22. Rxf8+ {[%clk 0:01:21.1]} 22... Qxf8 {[%clk 0:02:24.5]} 23. Bxg5 {[%clk
0:01:14.6]} 23... Qf5 {[%clk 0:02:18.6]} 24. Qd2 {[%clk 0:01:11.8]} 24... Bxd5
{[%clk 0:02:17.5]} 25. Rf1 {[%clk 0:01:12.1]} 25... Qe6 {[%clk 0:02:13.1]} 26.
Nf4 {[%clk 0:00:59.4]} 26... Bxf4 {[%clk 0:02:09.3]} 27. Bxf4 {[%clk 0:00:46.2]}
27... Bxg2 {[%clk 0:02:08.5]} 28. Kxg2 {[%clk 0:00:47.1]} 28... Re8 {[%clk
0:02:08.5]} 29. Rf2 {[%clk 0:00:44.5]} 29... Nf6 {[%clk 0:02:08.4]} 30. Qd3
{[%clk 0:00:31.4]} 30... Ng4 {[%clk 0:01:59.6]} 31. Rf1 {[%clk 0:00:25.3]} 31...
Qd5+ {[%clk 0:01:53.9]} 32. Kg1 {[%clk 0:00:20.5]} 32... Ne3 {[%clk 0:01:47.3]}
33. Bxe3 {[%clk 0:00:19.8]} 33... Rxe3 {[%clk 0:01:46.9]} 34. Qa6 {[%clk
0:00:19.5]} 34... Qd7 {[%clk 0:01:42.2]} 35. Qc4+ {[%clk 0:00:18.7]} 35... Kg7
{[%clk 0:01:41.7]} 36. Rf2 {[%clk 0:00:15]} 36... d3 {[%clk 0:01:32.6]} 37. exd3
{[%clk 0:00:14.8]} 37... Re1+ {[%clk 0:01:31.9]} 38. Kg2 {[%clk 0:00:14.5]}
38... Qc6+ {[%clk 0:01:30]} 39. Kh3 {[%clk 0:00:14.6]} 39... Qh6+ {[%clk
0:01:28.7]} 40. Kg2 {[%clk 0:00:14.7]} 40... Qc6+ {[%clk 0:01:28.2]} 41. Kh3
{[%clk 0:00:15.1]} 41... Qd7+ {[%clk 0:01:27.3]} 42. Qg4+ {[%clk 0:00:14.9]}
42... Qxg4+ {[%clk 0:01:27]} 43. Kxg4 {[%clk 0:00:15.8]} 43... Rd1 {[%clk
0:01:27.2]} 44. Re2 {[%clk 0:00:09.8]} 44... Kf7 {[%clk 0:01:26.7]} 45. Kf4
{[%clk 0:00:09.8]} 45... Rxd3 {[%clk 0:01:25.8]} 46. h4 {[%clk 0:00:10.4]} 46...
Rd1 {[%clk 0:01:25.4]} 47. g4 {[%clk 0:00:10.6]} 47... Ra1 {[%clk 0:01:23.8]}
48. a3 {[%clk 0:00:10.3]} 48... Rf1+ {[%clk 0:01:23.6]} 49. Kg5 {[%clk
0:00:10.6]} 49... Rf6 {[%clk 0:01:17.6]} 50. Rd2 {[%clk 0:00:09.7]} 50... Kg7
{[%clk 0:01:07]} 51. Rd7+ {[%clk 0:00:08.6]} 51... Rf7 {[%clk 0:01:07.5]} 52.
Rd2 {[%clk 0:00:07.9]} 52... Re7 {[%clk 0:01:06.7]} 53. h5 {[%clk 0:00:07.5]}
53... Re5+ {[%clk 0:01:06.2]} 54. Kf4 {[%clk 0:00:07.5]} 54... Re7 {[%clk
0:01:06]} 55. g5 {[%clk 0:00:07.9]} 55... Kf7 {[%clk 0:01:04.8]} 56. h6 {[%clk
0:00:07.2]} 56... Kg6 {[%clk 0:01:04.4]} 57. Rd6+ {[%clk 0:00:07.1]} 57... Kh5
{[%clk 0:01:04.5]} 58. Rf6 {[%clk 0:00:07.1]} 58... Re1 {[%clk 0:01:04]} 59. Rf7
{[%clk 0:00:07.5]} 59... Rf1+ {[%clk 0:01:03.5]} 0-1

[Event "*** Titled Tuesday Blitz"]
[Site "Chess.com"]
[Date "2020.04.07"]
[Round "7"]
[White "amintabatabaei"]
[Black "Gentlejimmy7"]
[Result "0-1"]
[WhiteElo "2790"]
[BlackElo "2625"]
[TimeControl "180+1"]
[EndTime "14:18:54 PDT"]
[Termination "Gentlejimmy7 won by checkmate"]

1. e4 {[%clk 0:03:00.9]} 1... c5 {[%clk 0:02:58.4]} 2. Nf3 {[%clk 0:03:01.1]}
2... Nc6 {[%clk 0:02:56.2]} 3. d4 {[%clk 0:03:01.7]} 3... cxd4 {[%clk 0:02:57]}
4. Nxd4 {[%clk 0:03:02.4]} 4... Nf6 {[%clk 0:02:57.5]} 5. Nc3 {[%clk 0:03:02.5]}
5... e6 {[%clk 0:02:57.7]} 6. Ndb5 {[%clk 0:03:00]} 6... Bc5 {[%clk 0:02:56.6]}
7. Nd6+ {[%clk 0:02:54.9]} 7... Ke7 {[%clk 0:02:55.5]} 8. Bf4 {[%clk 0:02:49.9]}
8... e5 {[%clk 0:02:55.3]} 9. Nf5+ {[%clk 0:02:49]} 9... Kf8 {[%clk 0:02:55.6]}
10. Be3 {[%clk 0:02:49.3]} 10... Bb4 {[%clk 0:02:30.8]} 11. Nd6 {[%clk
0:02:42.4]} 11... Qe7 {[%clk 0:02:21.7]} 12. Nxc8 {[%clk 0:02:39]} 12... Rxc8
{[%clk 0:02:22.6]} 13. f3 {[%clk 0:02:36.1]} 13... d5 {[%clk 0:02:18.8]} 14.
exd5 {[%clk 0:02:35.2]} 14... Nd4 {[%clk 0:02:16.7]} 15. Kf2 {[%clk 0:02:34.5]}
15... Nf5 {[%clk 0:01:52.4]} 16. Ne4 {[%clk 0:02:10.8]} 16... Nxe4+ {[%clk
0:01:46.7]} 17. fxe4 {[%clk 0:02:08]} 17... Qh4+ {[%clk 0:01:46.8]} 18. Kf3
{[%clk 0:01:57.9]} 18... Nxe3 {[%clk 0:01:17.1]} 19. Kxe3 {[%clk 0:01:58.8]}
19... Qf4+ {[%clk 0:01:03.8]} 20. Kd3 {[%clk 0:01:57.1]} 20... Qf2 {[%clk
0:00:45.8]} 21. c3 {[%clk 0:01:23.5]} 21... Qxb2 {[%clk 0:00:45.8]} 22. Rc1
{[%clk 0:01:23.8]} 22... Rxc3+ {[%clk 0:00:44.3]} 23. Rxc3 {[%clk 0:01:23.7]}
23... Qxc3+ {[%clk 0:00:43.8]} 24. Ke2 {[%clk 0:01:24.4]} 24... h5 {[%clk
0:00:42.1]} 25. Qd3 {[%clk 0:01:23]} 25... Qe1+ {[%clk 0:00:41.3]} 26. Kf3
{[%clk 0:01:22.9]} 26... Rh6 {[%clk 0:00:41.9]} 27. g3 {[%clk 0:01:16.9]} 27...
Rf6+ {[%clk 0:00:41]} 28. Kg2 {[%clk 0:01:17.4]} 28... Qf2+ {[%clk 0:00:38.6]}
29. Kh3 {[%clk 0:01:17.9]} 29... g5 {[%clk 0:00:35.5]} 30. Be2 {[%clk
0:01:13.9]} 30... g4+ {[%clk 0:00:32.5]} 31. Kh4 {[%clk 0:01:14.4]} 31... Qg2
{[%clk 0:00:32.9]} 32. Rf1 {[%clk 0:00:59.8]} 32... Qxh2+ {[%clk 0:00:26.4]} 33.
Kg5 {[%clk 0:00:59.7]} 33... Rg6+ {[%clk 0:00:23.6]} 34. Kf5 {[%clk 0:00:59.1]}
34... Bd6 {[%clk 0:00:18.2]} 35. Qe3 {[%clk 0:00:52.4]} 35... Kg7 {[%clk
0:00:15]} 36. a4 {[%clk 0:00:43.9]} 36... Rf6+ {[%clk 0:00:15.1]} 37. Kg5 {[%clk
0:00:44.3]} 37... Rg6+ {[%clk 0:00:15.4]} 38. Kf5 {[%clk 0:00:44.4]} 38... h4
{[%clk 0:00:15.9]} 39. Bxg4 {[%clk 0:00:38.9]} 39... hxg3 {[%clk 0:00:12.4]} 40.
Rf3 {[%clk 0:00:31.6]} 40... Rf6+ {[%clk 0:00:11.8]} 41. Kg5 {[%clk 0:00:31.9]}
41... Rg6+ {[%clk 0:00:11.1]} 42. Kf5 {[%clk 0:00:32.2]} 42... Rf6+ {[%clk
0:00:09.9]} 43. Kg5 {[%clk 0:00:32.8]} 43... Qh6# {[%clk 0:00:10.5]} 0-1

[Event "*** Titled Tuesday Blitz"]
[Site "Chess.com"]
[Date "2020.04.07"]
[Round "7"]
[White "talman67"]
[Black "Nikolakis2014"]
[Result "0-1"]
[WhiteElo "2533"]
[BlackElo "2704"]
[TimeControl "180+1"]
[EndTime "14:18:55 PDT"]
[Termination "Nikolakis2014 won on time"]

1. e4 {[%clk 0:03:00.9]} 1... c5 {[%clk 0:02:59.3]} 2. Nf3 {[%clk 0:03:00.8]}
2... Nc6 {[%clk 0:02:59.3]} 3. d4 {[%clk 0:02:59.7]} 3... cxd4 {[%clk
0:02:58.8]} 4. Nxd4 {[%clk 0:03:00.6]} 4... e5 {[%clk 0:02:59]} 5. Nb5 {[%clk
0:02:59.9]} 5... d6 {[%clk 0:02:59.2]} 6. N1c3 {[%clk 0:02:59.6]} 6... a6 {[%clk
0:02:58.7]} 7. Na3 {[%clk 0:02:59.6]} 7... Be6 {[%clk 0:02:58.8]} 8. Nc4 {[%clk
0:02:58.8]} 8... b5 {[%clk 0:02:56.1]} 9. Ne3 {[%clk 0:02:58.7]} 9... Nf6 {[%clk
0:02:56]} 10. Bd3 {[%clk 0:02:53.1]} 10... Be7 {[%clk 0:02:56]} 11. O-O {[%clk
0:02:52.9]} 11... O-O {[%clk 0:02:55.9]} 12. a4 {[%clk 0:02:52.4]} 12... b4
{[%clk 0:02:50.3]} 13. Ncd5 {[%clk 0:02:52.6]} 13... a5 {[%clk 0:02:48.4]} 14.
Nxf6+ {[%clk 0:02:44.2]} 14... Bxf6 {[%clk 0:02:47.2]} 15. Bc4 {[%clk
0:02:45.1]} 15... Rc8 {[%clk 0:02:42]} 16. c3 {[%clk 0:02:28.1]} 16... Bg5
{[%clk 0:02:36.3]} 17. Nd5 {[%clk 0:02:26.4]} 17... Bxc1 {[%clk 0:02:34.6]} 18.
Rxc1 {[%clk 0:02:23.4]} 18... bxc3 {[%clk 0:02:34.1]} 19. bxc3 {[%clk
0:02:20.6]} 19... Ne7 {[%clk 0:02:33.2]} 20. Qd3 {[%clk 0:01:54]} 20... Bxd5
{[%clk 0:02:31.1]} 21. Bxd5 {[%clk 0:01:53.1]} 21... Nxd5 {[%clk 0:02:30.4]} 22.
Qxd5 {[%clk 0:01:52.9]} 22... Rc5 {[%clk 0:02:30.2]} 23. Qd3 {[%clk 0:01:51.8]}
23... Qc7 {[%clk 0:02:30.2]} 24. Rfd1 {[%clk 0:01:51.9]} 24... Rd8 {[%clk
0:02:29.4]} 25. c4 {[%clk 0:01:46.8]} 25... g6 {[%clk 0:02:28.3]} 26. g3 {[%clk
0:01:43.5]} 26... Qc6 {[%clk 0:02:28.3]} 27. Qb3 {[%clk 0:01:15.3]} 27... Rc8
{[%clk 0:01:46.8]} 28. Rd5 {[%clk 0:00:58.6]} 28... Rxc4 {[%clk 0:01:25.1]} 29.
Rxc4 {[%clk 0:00:57.1]} 29... Qxc4 {[%clk 0:01:25.1]} 30. Qxc4 {[%clk
0:00:57.6]} 30... Rxc4 {[%clk 0:01:24.3]} 31. Rxa5 {[%clk 0:00:58.5]} 31... Rxe4
{[%clk 0:01:23.7]} 32. Rd5 {[%clk 0:00:56.2]} 32... Rxa4 {[%clk 0:01:16.3]} 33.
Rxd6 {[%clk 0:00:56]} 33... g5 {[%clk 0:01:15.2]} 34. h3 {[%clk 0:00:46.6]}
34... Kg7 {[%clk 0:01:14.7]} 35. g4 {[%clk 0:00:45.1]} 35... h5 {[%clk
0:01:13.7]} 36. f3 {[%clk 0:00:35.6]} 36... hxg4 {[%clk 0:01:03.6]} 37. hxg4
{[%clk 0:00:36.5]} 37... Rf4 {[%clk 0:01:02.7]} 38. Kg2 {[%clk 0:00:19.8]} 38...
e4 {[%clk 0:01:02.8]} 39. fxe4 {[%clk 0:00:19.9]} 39... Rxg4+ {[%clk 0:01:02.7]}
40. Kf3 {[%clk 0:00:20.5]} 40... Rf4+ {[%clk 0:01:02.9]} 41. Ke3 {[%clk
0:00:21]} 41... Rf1 {[%clk 0:01:03]} 42. Rd5 {[%clk 0:00:19.5]} 42... Kg6 {[%clk
0:01:01.9]} 43. Rd8 {[%clk 0:00:15.8]} 43... g4 {[%clk 0:00:57.9]} 44. Ke2
{[%clk 0:00:11.6]} 44... Rf4 {[%clk 0:00:57]} 45. Ke3 {[%clk 0:00:10.5]} 45...
Rf3+ {[%clk 0:00:56.9]} 46. Ke2 {[%clk 0:00:10.8]} 46... Kg5 {[%clk 0:00:56.1]}
47. Rg8+ {[%clk 0:00:08.9]} 47... Kf4 {[%clk 0:00:56]} 48. Rg7 {[%clk
0:00:09.1]} 48... f6 {[%clk 0:00:51.7]} 49. Rg6 {[%clk 0:00:08.3]} 49... Kg3
{[%clk 0:00:49.9]} 50. Rg8 {[%clk 0:00:02.8]} 50... Kh3 {[%clk 0:00:48.2]} 51.
Rh8+ {[%clk 0:00:01.8]} 51... Kg2 {[%clk 0:00:47.6]} 52. Rg8 {[%clk 0:00:02]}
52... g3 {[%clk 0:00:47.6]} 0-1